fUSD/lending_fUSD_20250916
["ID","MTS","AMOUNT","RATE_DAILY","PERIOD"]
[385848843,1758059536532,-814.45,0.00033972,6]
[385848844,1758059536546,-581.21,0.00033972,6]
[385848845,1758059536563,-400.0,0.00033972,6]
[385848846,1758059536577,-2151.75,0.00033972,6]
[385848847,1758059536590,-400.0,0.00033972,6]
[385848848,1758059536604,-400.0,0.00033972,6]
[385848849,1758059536618,-590.85,0.00033972,6]
[385848850,1758059536632,-400.0,0.00033972,6]
[385848851,1758059536646,-576.61,0.00033972,6]
[385848852,1758059536661,-616.64,0.00033972,6]
[385848853,1758059536675,-426.57,0.00033972,6]
[385848854,1758059536690,-2554.31,0.00033972,6]
[385848855,1758059536704,-695.75,0.00033972,6]
[385848856,1758059536719,-862.95,0.00033972,6]
[385848857,1758059536732,-400.0,0.00033972,6]
[385848858,1758059536746,-528.3,0.00033972,6]
[385848859,1758059536759,-465.42,0.00033972,6]
[385848860,1758059536776,-629.46,0.00033972,6]
[385848861,1758059536792,-402.58,0.00033972,6]
[385848862,1758059536807,-760.02,0.00033972,6]
[385848863,1758059536823,-400.0,0.00033972,6]
[385848864,1758059536838,-573.15,0.00033972,6]
[385848865,1758059536853,-400.0,0.00033972,6]
[385848866,1758059536868,-555.71,0.00033972,6]
[385848867,1758059536885,-400.0,0.00033972,6]
[385848868,1758059536899,-479.18,0.00033972,6]
[385848869,1758059536915,-447.53,0.00033972,6]
[385848870,1758059536929,-418.11,0.00033972,6]
[385848871,1758059536942,-423.89,0.00033972,6]
[385848872,1758059536956,-435.17,0.00033972,6]
[385848873,1758059536970,-450.0,0.00033972,6]
[385848874,1758059536985,-400.0,0.00033972,6]
[385848875,1758059536999,-400.0,0.00033972,6]
[385848876,1758059537013,-166.92725734,0.00033972,6]
[385848877,1758059537027,-704.61,0.00033972,6]
[385848878,1758059537041,-778.74,0.00033972,6]
[385848879,1758059537055,-400.0,0.00033972,6]
[385848880,1758059537069,-1172.18,0.00033972,6]
[385848881,1758059537083,-5286.95,0.00033972,6]
[385848882,1758059537098,-400.0,0.00033972,6]
[385848883,1758059537112,-400.0,0.00033972,6]
[385848884,1758059537125,-542.4,0.00033972,6]
[385848885,1758059537138,-400.0,0.00033972,6]
[385848886,1758059537152,-400.0,0.00033972,6]
[385848887,1758059537166,-400.0,0.00033972,6]
[385848888,1758059537180,-435.09,0.00033972,6]
[385848889,1758059537194,-527.52,0.00033972,6]
[385848890,1758059537207,-551.22,0.00033972,6]
[385848891,1758059537221,-400.0,0.00033972,6]
[385848892,1758059537235,-400.0,0.00033972,6]
[385848893,1758059537249,-483.09,0.00033972,6]
[385848894,1758059537262,-777.85,0.00033972,6]
[385848895,1758059537276,-400.0,0.00033972,6]
[385848896,1758059537290,-445.13,0.00033972,6]
[385848897,1758059537303,-510.44,0.00033972,6]
[385848898,1758059537318,-173.544193,0.00033972,6]
[385848899,1758059537331,-650.71,0.00033972,6]
[385848900,1758059537345,-632.37,0.00033972,6]
[385848901,1758059537358,-400.0,0.00033972,6]
[385848902,1758059537372,-400.0,0.00033972,6]
[385848903,1758059537387,-400.0,0.00033972,6]
[385848904,1758059537403,-400.0,0.00033972,6]
[385848905,1758059537418,-763.55,0.00033972,6]
[385848906,1758059537432,-460.3601579,0.00033972,6]
[385848907,1758059537445,-701.89,0.00033972,6]
[385848908,1758059537459,-400.0,0.00033972,6]
[385848909,1758059537473,-796.09,0.00033972,6]
[385848910,1758059537488,-620.92,0.00033972,6]
[385848911,1758059537501,-400.0,0.00033972,6]
[385848912,1758059537516,-400.0,0.00033972,6]
[385848913,1758059537531,-400.0,0.00033972,6]
[385848914,1758059537545,-400.0,0.00033972,6]
[385848915,1758059537559,-400.0,0.00033972,6]
[385848916,1758059537572,-400.0,0.00033972,6]
[385848917,1758059537586,-515.36497871,0.00033972,6]
[385848918,1758059537600,-745.62,0.00033972,6]
[385848919,1758059537614,-447.35,0.00033972,6]
[385848920,1758059537627,-629.24,0.00033972,6]
[385848921,1758059537640,-400.0,0.00033972,6]
[385848922,1758059537654,-400.0,0.00033972,6]
[385848923,1758059537668,-936.1,0.00033972,6]
[385848924,1758059537681,-400.0,0.00033972,6]
[385848925,1758059537695,-400.0,0.00033972,6]
[385848926,1758059537709,-1215.29,0.00033972,6]
[385848927,1758059537723,-414.16470975,0.00033972,6]
[385848928,1758059537736,-400.0,0.00033972,6]
[385848929,1758059537751,-470.35,0.00033972,6]
[385848930,1758059537765,-400.0,0.00033972,6]
[385848931,1758059537779,-722.71,0.00033972,6]
[385848932,1758059537798,-400.0,0.00033972,6]
[385848933,1758059537811,-656.3,0.00033972,6]
[385848934,1758059537826,-1790.44,0.00033972,6]
[385848935,1758059537840,-400.0,0.00033972,6]
[385848936,1758059537854,-400.0,0.00033972,6]
[385848937,1758059537868,-1382.16,0.00033972,6]
[385848938,1758059537882,-400.0,0.00033972,6]
[385848939,1758059537895,-429.26,0.00033972,6]
[385848940,1758059537911,-1005.55,0.00033972,6]
[385848941,1758059537925,-400.0,0.00033972,6]
[385848942,1758059538270,-474.46868673,0.00033972,6]
[385848943,1758059538297,-690.12,0.00033972,6]
[385848944,1758059538306,-400.0,0.00033972,6]
[385848945,1758059538316,-607.8,0.00033972,6]
[385848946,1758059538326,-400.0,0.00033972,6]
[385848947,1758059538335,-1101.76,0.00033972,6]
[385848948,1758059538346,-671.41,0.00033972,6]
[385848949,1758059538356,-644.78,0.00033972,6]
[385848950,1758059538366,-281.74361148,0.00033972,6]
[385848951,1758059538376,-400.0,0.00033972,6]
[385848952,1758059538386,-783.19,0.00033972,6]
[385848953,1758059538399,-400.0,0.00033972,6]
[385848954,1758059538409,-467.3,0.00033972,6]
[385848955,1758059538419,-450.16,0.00033972,6]
[385848956,1758059538430,-400.0,0.00033972,6]
[385848957,1758059538439,-400.0,0.00033972,6]
[385848958,1758059538450,-1181.9,0.00033972,6]
[385848959,1758059538459,-431.77,0.00033972,6]
[385848960,1758059538469,-1421.99,0.00033972,6]
[385848961,1758059538480,-604.53,0.00033972,6]
[385848962,1758059538491,-400.0,0.00033972,6]
[385848963,1758059538501,-417.22,0.00033972,6]
[385848964,1758059538510,-633.44,0.00033972,6]
[385848965,1758059538520,-400.0,0.00033972,6]
[385848966,1758059538530,-684.03,0.00034032,2]
[385848967,1758059538540,-400.0,0.00034033,6]
[385848968,1758059538550,-892.92,0.00034033,6]
[385848969,1758059538559,-568.06,0.00034033,6]
[385848970,1758059538569,-1072.67,0.00034033,6]
[385848971,1758059538579,-512.55,0.00034033,6]
[385848972,1758059538589,-774.02,0.00034033,5]
[385848973,1758059538599,-400.0,0.00034033,6]
[385848974,1758059538609,-400.0,0.00034033,6]
[385848975,1758059538618,-151.0,0.00034047,6]
[385848976,1758059538629,-500.0,0.0003406,7]
[385848977,1758059538638,-500.0,0.0003407,7]
[385848978,1758059538648,-500.0,0.0003407,7]
[385848979,1758059538658,-500.0,0.0003409,7]
[385848980,1758059538667,-500.0,0.0003409,7]
[385848981,1758059538677,-499.16266562,0.00034101,7]
[385848982,1758059538686,-9414.4397709,0.00034117,2]
[385848983,1758059538696,-500.0,0.00034141,7]
[385848984,1758059538706,-500.0,0.00034171,7]
[385848985,1758059538715,-500.0,0.00034171,7]
[385848986,1758059538724,-500.0,0.00034195,7]
[385848987,1758059538734,-160.40177069,0.00034203,7]
[385848988,1758059538744,-2058.39,0.00034207,6]
[385848989,1758059538754,-400.0,0.00034207,6]
[385848990,1758059538763,-412.53,0.00034207,6]
[385848991,1758059538772,-618.61,0.00034207,6]
[385848992,1758059538782,-1651.68,0.00034207,6]
[385848993,1758059538792,-2717.2,0.00034207,6]
[385848994,1758059538801,-400.0,0.00034207,6]
[385848995,1758059538811,-462.71,0.00034207,6]
[385848996,1758059538820,-400.0,0.00034207,6]
[385848997,1758059538830,-400.0,0.00034207,6]
[385848998,1758059538840,-400.0,0.00034207,6]
[385848999,1758059538851,-3231.76,0.00034207,6]
[385849000,1758059538861,-436.89,0.00034207,6]
[385849001,1758059538871,-500.0,0.00034208,7]
[385849002,1758059538880,-1000.0,0.00034208,7]
[385849003,1758059538889,-1154.12,0.00034244,120]
[385849004,1758059538899,-485.67,0.00034244,6]
[385849005,1758059538909,-400.0,0.00034244,6]
[385849006,1758059538918,-467.8,0.00034244,6]
[385849007,1758059538928,-400.0,0.00034245,6]
[385849008,1758059538937,-467.83,0.00034245,6]
[385849009,1758059538946,-400.0,0.00034245,6]
[385849010,1758059538956,-400.0,0.00034245,6]
[385849011,1758059538964,-400.0,0.00034245,6]
[385849012,1758059538974,-453.02,0.00034245,6]
[385849013,1758059538983,-893.66,0.00034245,6]
[385849014,1758059538993,-400.0,0.00034245,6]
[385849015,1758059539002,-400.0,0.00034245,6]
[385849016,1758059539011,-405.05672827,0.00034245,6]
[385849017,1758059539020,-400.0,0.00034245,6]
[385849018,1758059539030,-400.0,0.00034245,6]
[385849019,1758059539039,-404.97,0.00034245,6]
[385849020,1758059539050,-431.58,0.00034245,6]
[385849021,1758059539059,-564.94,0.00034245,6]
[385849022,1758059539069,-400.0,0.00034245,6]
[385849023,1758059539078,-475.93,0.00034245,6]
[385849024,1758059539087,-646.81,0.00034245,6]
[385849025,1758059539097,-400.0,0.00034245,6]
[385849026,1758059539106,-400.0,0.00034245,6]
[385849027,1758059539115,-503.49,0.00034245,6]
[385849028,1758059539125,-555.18,0.00034245,6]
[385849029,1758059539134,-493.67,0.00034245,6]
[385849030,1758059539144,-406.48,0.00034245,6]
[385849031,1758059539153,-400.0,0.00034245,6]
[385849032,1758059539162,-472.57,0.00034245,6]
[385849033,1758059539172,-566.4,0.00034245,6]
[385849034,1758059539181,-443.11,0.00034245,6]
[385849035,1758059539191,-556.41,0.00034245,6]
[385849036,1758059539200,-642.62,0.00034245,6]
[385849037,1758059539209,-526.48,0.00034245,6]
[385849038,1758059539219,-638.73,0.00034245,6]
[385849039,1758059539228,-400.0,0.00034245,6]
[385849040,1758059539238,-514.99,0.00034245,6]
[385849041,1758059539248,-477.56,0.00034245,6]
[385849042,1758059539258,-400.0,0.00034245,6]
[385849043,1758059539267,-824.84,0.00034245,6]
[385849044,1758059539277,-558.91,0.00034245,6]
[385849045,1758059539286,-429.04,0.00034245,6]
[385849046,1758059539295,-771.88,0.00034245,6]
[385849047,1758059539305,-400.0,0.00034245,6]
[385849048,1758059539316,-456.11,0.00034245,6]
[385849049,1758059539326,-422.65,0.00034245,6]
[385849050,1758059539335,-400.0,0.00034245,6]
[385849051,1758059539345,-400.0,0.00034245,6]
[385849052,1758059539355,-400.0,0.00034245,6]
[385849053,1758059539365,-682.71,0.00034245,6]
[385849054,1758059539375,-792.25,0.00034245,6]
[385849055,1758059539384,-1411.58,0.00034245,6]
[385849056,1758059539394,-678.71,0.00034245,6]
[385849057,1758059539408,-876.88,0.00034245,6]
[385849058,1758059539417,-922.72,0.00034245,6]
[385849059,1758059539426,-590.13,0.00034245,6]
[385849060,1758059539437,-741.55,0.00034245,6]
[385849061,1758059539448,-400.0,0.00034245,6]
[385849062,1758059539457,-400.0,0.00034245,6]
[385849063,1758059539467,-400.0,0.00034245,6]
[385849064,1758059539476,-923.03,0.00034245,6]
[385849065,1758059539487,-590.27,0.00034245,6]
[385849066,1758059539497,-400.0,0.00034246,6]
[385849067,1758059539506,-379.97800286,0.00034246,6]
[385849068,1758059539516,-400.0,0.00034246,6]
[385849069,1758059539525,-446.83,0.00034246,6]
[385849070,1758059539535,-400.0,0.00034246,6]
[385849071,1758059539545,-547.28,0.00034246,6]
[385849072,1758059539554,-532.91158809,0.00034246,6]
[385849073,1758059539563,-400.0,0.00034246,6]
[385849074,1758059539573,-400.0,0.00034246,6]
[385849075,1758059539583,-390.83,0.00034246,6]
[385849076,1758059539592,-404.16,0.00034246,6]
[385849077,1758059539601,-528.17,0.00034246,6]
[385849078,1758059539610,-542.9,0.00034246,6]
[385849079,1758059539620,-854.5,0.00034246,6]
[385849080,1758059539629,-403.43,0.00034246,6]
[385849081,1758059539639,-400.0,0.00034246,6]
[385849082,1758059539648,-400.0,0.00034246,6]
[385849083,1758059539657,-384.01624267,0.00034246,6]
[385849084,1758059539667,-400.0,0.00034246,6]
[385849085,1758059539676,-400.0,0.00034246,6]
[385849086,1758059539685,-400.0,0.00034246,6]
[385849087,1758059539695,-400.0,0.00034246,6]
[385849088,1758059539704,-425.79,0.00034246,6]
[385849089,1758059539714,-440.62,0.00034246,6]
[385849090,1758059539723,-627.06,0.00034246,6]
[385849091,1758059539733,-400.0,0.00034246,6]
[385849092,1758059539742,-404.88,0.00034246,6]
[385849093,1758059539751,-550.75,0.00034246,6]
[385849094,1758059539761,-482.27,0.00034246,6]
[385849095,1758059539770,-597.91,0.00034246,6]
[385849096,1758059539780,-176.96921276,0.00034246,6]
[385849097,1758059539789,-400.0,0.00034246,6]
[385849098,1758059539798,-489.33,0.00034246,6]
[385849099,1758059539807,-400.0,0.00034246,6]
[385849100,1758059539817,-400.44,0.00034246,6]
[385849101,1758059539827,-432.89,0.00034246,6]
[385849102,1758059539836,-1630.47,0.00034246,6]
[385849103,1758059539846,-400.0,0.00034246,6]
[385849104,1758059539856,-400.0,0.00034246,6]
[385849105,1758059539865,-464.0,0.00034246,6]
[385849106,1758059539874,-541.51,0.00034246,6]
[385849107,1758059539884,-400.0,0.00034246,120]
[385849108,1758059539894,-400.0,0.00034246,6]
[385849109,1758059539903,-431.13,0.00034246,6]
[385849110,1758059539913,-666.3,0.00034246,6]
[385849111,1758059539922,-400.0,0.00034246,6]
[385849112,1758059539931,-400.0,0.00034246,6]
[385849113,1758059539940,-400.0,0.00034246,6]
[385849114,1758059539950,-547.93,0.00034246,6]
[385849115,1758059539959,-400.0,0.00034246,6]
[385849116,1758059539968,-474.55,0.00034246,6]
[385849117,1758059539978,-445.76,0.00034246,6]
[385849118,1758059539987,-400.0,0.00034246,6]
[385849119,1758059539997,-681.13,0.00034246,6]
[385849120,1758059540006,-520.69,0.00034246,6]
[385849121,1758059540016,-400.0,0.00034246,6]
[385849122,1758059540026,-402.9,0.00034246,6]
[385849123,1758059540035,-400.0,0.00034246,6]
[385849124,1758059540045,-400.0,0.00034246,6]
[385849125,1758059540054,-400.0,0.00034246,6]
[385849126,1758059540064,-225.95,0.00034246,6]
[385849127,1758059540073,-438.72,0.00034246,6]
[385849128,1758059540082,-930.22,0.00034246,6]
[385849129,1758059540092,-520.75,0.00034246,6]
[385849130,1758059540102,-400.0,0.00034246,6]
[385849131,1758059540112,-691.69,0.00034246,6]
[385849132,1758059540121,-541.46,0.00034246,6]
[385849133,1758059540131,-840.93,0.00034246,6]
[385849134,1758059540140,-531.61,0.00034246,6]
[385849135,1758059540150,-400.0,0.00034246,6]
[385849136,1758059540159,-528.41,0.00034246,6]
[385849137,1758059540168,-400.0,0.00034246,6]
[385849138,1758059540177,-3105.74,0.00034246,6]
[385849139,1758059540187,-400.0,0.00034246,6]
[385849140,1758059540196,-593.33,0.00034246,6]
[385849141,1758059540205,-530.57,0.00034246,6]
[385849142,1758059540214,-400.0,0.00034246,6]
[385849143,1758059540224,-801.13,0.00034246,6]
[385849144,1758059540236,-400.0,0.00034246,6]
[385849145,1758059540245,-400.0,0.00034246,6]
[385849146,1758059540255,-400.0,0.00034246,6]
[385849147,1758059540264,-720.72,0.00034246,6]
[385849148,1758059540274,-450.36,0.00034246,6]
[385849149,1758059540283,-400.0,0.00034246,6]
[385849150,1758059540293,-400.0,0.00034246,6]
[385849151,1758059540302,-455.66,0.00034246,6]
[385849152,1758059540312,-400.0,0.00034246,6]
[385849153,1758059540321,-400.0,0.00034246,6]
[385849154,1758059540331,-400.0,0.00034246,6]
[385849155,1758059540341,-400.0,0.00034246,6]
[385849156,1758059540351,-452.15,0.00034246,6]
[385849157,1758059540360,-599.86,0.00034246,6]
[385849158,1758059540370,-1299.74,0.00034246,6]
[385849159,1758059540379,-572.67,0.00034246,6]
[385849160,1758059540389,-400.0,0.00034246,6]
[385849161,1758059540401,-422.38,0.00034246,6]
[385849162,1758059540410,-400.0,0.00034246,6]
[385849163,1758059540420,-404.16,0.00034246,6]
[385849164,1758059540429,-400.0,0.00034246,6]
[385849165,1758059540438,-400.0,0.00034246,6]
[385849166,1758059540450,-400.0,0.00034246,6]
[385849167,1758059540460,-924.76,0.00034246,6]
[385849168,1758059540471,-1289.24,0.00034246,6]
[385849169,1758059540480,-293.1,0.00034246,6]
[385849170,1758059540489,-554.69,0.00034246,6]
[385849171,1758059540499,-400.0,0.00034246,6]
[385849172,1758059540508,-799.13,0.00034246,6]
[385849173,1758059540518,-467.79,0.00034246,6]
[385849174,1758059540528,-943.71,0.00034246,6]
[385849175,1758059540538,-562.81,0.00034246,6]
[385849176,1758059540547,-617.84,0.00034246,6]
[385849177,1758059540557,-1554.92,0.00034246,6]
[385849178,1758059540567,-472.52,0.00034246,6]
[385849179,1758059540576,-502.44,0.00034246,6]
[385849180,1758059540586,-2454.26,0.00034246,6]
[385849181,1758059540596,-400.0,0.00034246,6]
[385849182,1758059540605,-814.45,0.00034246,6]
[385849183,1758059540615,-581.21,0.00034246,6]
[385849184,1758059540624,-400.0,0.00034246,6]
[385849185,1758059540633,-2151.75,0.00034246,6]
[385849186,1758059540642,-400.0,0.00034246,6]
[385849187,1758059540651,-349.16180601,0.00034246,6]
[385849188,1758059540660,-590.85,0.00034246,6]
[385849189,1758059540670,-400.0,0.00034246,6]
[385849190,1758059540680,-576.61,0.00034246,6]
[385849191,1758059540690,-616.64,0.00034246,6]
[385849192,1758059540700,-426.57,0.00034246,6]
[385849193,1758059540709,-2554.31,0.00034246,6]
[385849194,1758059540719,-695.75,0.00034246,6]
[385849195,1758059540729,-862.95,0.00034246,6]
[385849196,1758059540738,-400.0,0.00034246,6]
[385849197,1758059540748,-528.3,0.00034246,6]
[385849198,1758059540758,-465.42,0.00034246,6]
[385849199,1758059540767,-629.46,0.00034246,6]
[385849200,1758059540776,-402.58,0.00034246,6]
[385849201,1758059540786,-760.02,0.00034246,6]
[385849202,1758059540796,-400.0,0.00034246,6]
[385849203,1758059540807,-573.15,0.00034246,6]
[385849204,1758059540818,-400.0,0.00034246,6]
[385849205,1758059540828,-555.71,0.00034246,6]
[385849206,1758059540839,-400.0,0.00034246,6]
[385849207,1758059540849,-479.18,0.00034246,6]
[385849208,1758059540859,-447.53,0.00034246,6]
[385849209,1758059540871,-418.11,0.00034246,6]
[385849210,1758059540881,-435.17,0.00034246,6]
[385849211,1758059540892,-423.89,0.00034246,6]
[385849212,1758059540902,-450.0,0.00034246,6]
[385849213,1758059540913,-400.0,0.00034246,6]
[385849214,1758059540924,-400.0,0.00034246,6]
[385849215,1758059540935,-704.61,0.00034246,6]
[385849216,1758059540944,-778.74,0.00034246,6]
[385849217,1758059540953,-236.57823082,0.00034246,6]
[385849218,1758059540963,-1172.18,0.00034246,6]
[385849219,1758059540972,-5286.95,0.00034246,6]
[385849220,1758059540982,-400.0,0.00034246,6]
[385849221,1758059540991,-400.0,0.00034246,6]
[385849222,1758059541001,-542.4,0.00034246,6]
[385849223,1758059541010,-400.0,0.00034246,6]
[385849224,1758059541019,-400.0,0.00034246,6]
[385849225,1758059541028,-400.0,0.00034246,6]
[385849226,1758059541038,-435.09,0.00034246,6]
[385849227,1758059541048,-527.52,0.00034246,6]
[385849228,1758059541057,-551.22,0.00034246,6]
[385849229,1758059541067,-400.0,0.00034246,6]
[385849230,1758059541076,-400.0,0.00034246,6]
[385849231,1758059541086,-483.09,0.00034246,6]
[385849232,1758059541098,-777.85,0.00034246,6]
[385849233,1758059541109,-400.0,0.00034246,6]
[385849234,1758059541121,-445.13,0.00034246,6]
[385849235,1758059541130,-510.44,0.00034246,6]
[385849236,1758059541140,-650.71,0.00034246,6]
[385849237,1758059541149,-632.37,0.00034246,6]
[385849238,1758059541158,-400.0,0.00034246,6]
[385849239,1758059541168,-400.0,0.00034246,6]
[385849240,1758059541178,-400.0,0.00034246,6]
[385849241,1758059541188,-400.0,0.00034246,6]
[385849242,1758059541198,-763.55,0.00034246,6]
[385849243,1758059541207,-701.89,0.00034246,6]
[385849244,1758059541216,-400.0,0.00034246,6]
[385849245,1758059541225,-796.09,0.00034246,6]
[385849246,1758059541235,-620.92,0.00034246,6]
[385849247,1758059541244,-317.1,0.00034246,6]
[385849248,1758059541254,-400.0,0.00034246,6]
[385849249,1758059541265,-400.0,0.00034246,6]
[385849250,1758059541274,-400.0,0.00034246,6]
[385849251,1758059541283,-400.0,0.00034246,6]
[385849252,1758059541293,-400.0,0.00034246,6]
[385849253,1758059541305,-745.62,0.00034246,6]
[385849254,1758059541316,-447.35,0.00034246,6]
[385849255,1758059541326,-629.24,0.00034246,6]
[385849256,1758059541337,-151.0,0.00034246,7]
[385849257,1758059541347,-400.0,0.00034246,6]
[385849258,1758059541357,-400.0,0.00034246,6]
[385849259,1758059541367,-254.586941,0.00034246,7]
[385849260,1758059541376,-936.1,0.00034246,6]
[385849261,1758059541386,-151.0,0.00034246,7]
[385849262,1758059541396,-151.0,0.00034246,7]
[385849263,1758059541410,-151.0,0.00034246,7]
[385849264,1758059541420,-151.0,0.00034246,7]
[385849265,1758059541431,-400.0,0.00034246,6]
[385849266,1758059541441,-151.0,0.00034246,7]
[385849267,1758059541453,-151.0,0.00034246,7]
[385849268,1758059541463,-151.0,0.00034246,7]
[385849269,1758059541475,-151.0,0.00034246,7]
[385849270,1758059541485,-151.0,0.00034246,7]
[385849271,1758059541496,-151.0,0.00034246,7]
[385849272,1758059541505,-151.0,0.00034246,7]
[385849273,1758059541515,-151.0,0.00034246,7]
[385849274,1758059541525,-151.0,0.00034246,7]
[385849275,1758059541534,-1215.29,0.00034246,6]
[385849276,1758059541740,-151.0,0.00034246,7]
[385849277,1758059541762,-151.0,0.00034246,7]
[385849278,1758059541772,-400.0,0.00034246,6]
[385849279,1758059541783,-151.0,0.00034246,7]
[385849280,1758059541794,-151.0,0.00034246,7]
[385849281,1758059541803,-151.0,0.00034246,7]
[385849282,1758059541813,-151.0,0.00034246,7]
[385849283,1758059541824,-151.0,0.00034246,7]
[385849284,1758059541835,-259.044024,0.00034246,7]
[385849285,1758059541844,-151.0,0.00034246,7]
[385849286,1758059541854,-400.0,0.00034246,6]
[385849287,1758059541863,-470.35,0.00034246,6]
[385849288,1758059541876,-400.0,0.00034246,6]
[385849289,1758059541886,-722.71,0.00034246,6]
[385849290,1758059541897,-151.0,0.00034246,7]
[385849291,1758059541906,-151.0,0.00034246,7]
[385849292,1758059541916,-151.0,0.00034246,7]
[385849293,1758059541925,-400.0,0.00034246,6]
[385849294,1758059541934,-656.3,0.00034246,6]
[385849295,1758059541944,-1790.44,0.00034246,6]
[385849296,1758059541955,-400.0,0.00034246,6]
[385849297,1758059541965,-400.0,0.00034246,6]
[385849298,1758059541975,-1382.16,0.00034246,6]
[385849299,1758059541985,-400.0,0.00034246,6]
[385849300,1758059541995,-429.26,0.00034246,6]
[385849301,1758059542005,-1005.55,0.00034246,6]
[385849302,1758059542015,-151.0,0.00034246,7]
[385849303,1758059542024,-400.0,0.00034246,6]
[385849304,1758059542034,-167.324245,0.00034246,7]
[385849305,1758059542044,-690.12,0.00034246,6]
[385849306,1758059542053,-400.0,0.00034246,6]
[385849307,1758059542063,-607.8,0.00034246,6]
[385849308,1758059542072,-1101.76,0.00034246,6]
[385849309,1758059542081,-400.0,0.00034246,6]
[385849310,1758059542091,-671.41,0.00034246,6]
[385849311,1758059542100,-644.78,0.00034246,6]
[385849312,1758059542110,-400.0,0.00034246,6]
[385849313,1758059542119,-783.19,0.00034246,6]
[385849314,1758059542129,-151.0,0.00034246,7]
[385849315,1758059542138,-151.0,0.00034246,7]
[385849316,1758059542148,-511.51241133,0.00034246,6]
[385849317,1758059542158,-180.24666,0.00034246,7]
[385849318,1758059542167,-151.0,0.00034246,7]
[385849319,1758059542176,-467.3,0.00034246,6]
[385849320,1758059542186,-151.0,0.00034246,7]
[385849321,1758059542196,-450.16,0.00034246,6]
[385849322,1758059542206,-151.0,0.00034246,7]
[385849323,1758059542216,-400.0,0.00034246,6]
[385849324,1758059542225,-400.0,0.00034246,6]
[385849325,1758059542235,-1181.9,0.00034246,6]
[385849326,1758059542244,-151.0,0.00034246,7]
[385849327,1758059542253,-151.0,0.00034246,7]
[385849328,1758059542262,-431.77,0.00034246,6]
[385849329,1758059542272,-151.0,0.00034246,7]
[385849330,1758059542281,-208.999459,0.00034246,7]
[385849331,1758059542290,-1421.99,0.00034246,6]
[385849332,1758059542299,-604.53,0.00034246,6]
[385849333,1758059542309,-400.0,0.00034246,6]
[385849334,1758059542319,-417.22,0.00034246,6]
[385849335,1758059542328,-633.44,0.00034246,6]
[385849336,1758059542338,-248.29326367,0.00034246,6]
[385849337,1758059542348,-500.0,0.0003429,7]
[385849338,1758059542357,-400.0,0.00034307,6]
[385849339,1758059542367,-892.92,0.00034307,6]
[385849340,1758059542376,-568.06,0.00034307,6]
[385849341,1758059542386,-1072.67,0.00034307,6]
[385849342,1758059542396,-512.55,0.00034307,6]